[Event "ESP-chT Honor Division 2022"]
[Site "Linares"]
[Date "2022.09.17"]
[Round "1.9"]
[White "Santos Ruiz, Miguel"]
[Black "Masague Artero, Guerau"]
[Result "1-0"]
[ECO "B34"]
[WhiteElo "2581"]
[BlackElo "2308"]
[Annotator "ChessBase"]
[PlyCount "99"]
[EventDate "2022.09.17"]
[EventType "team-tourn"]
[EventCountry "ESP"]
[SourceTitle "playchess.com"]
[Source "ChessBase"]
[SourceQuality "1"]
[TimeControl "5400+30"]

1. e4 {[%emt 0:00:04]} c5 {[%emt 0:00:14]} 2. Nf3 {[%emt 0:00:04]} Nc6 {[%emt 0:00:25]} 3. d4 {[%emt 0:00:04]} cxd4 {[%emt 0:00:07]} 4. Nxd4 {[%emt 0:00:03]} Nf6 {[%emt 0:01:39]} 5. Nc3 {[%emt 0:00:05]} e5 {[%emt 0:00:34]} 6. Ndb5 {[%emt 0:00:06]} d6 {[%emt 0:00:07]} 7. Nd5 {[%emt 0:00:04]} Nxd5 {[%emt 0:00:11]} 8. exd5 {[%emt 0:00:04]} Nb8 {[%emt 0:00:33]} 9. a4 {[%emt 0:00:04]} Be7 {[%emt 0:01:25]} 10. Bd2 {[%emt 0:00:07]} O-O {[%emt 0:04:28]} 11. Be2 {[%emt 0:00:49]} f5 {[%emt 0:02:55]} 12. a5 {[%emt 0:00:46]} a6 {[%emt 0:15:37]} 13. Na3 {[%emt 0:00:19]} f4 {[%emt 0:04:30]} 14. Nc4 {[%emt 0:02:05]} Bf5 {[%emt 0:00:49]} 15. Bb4 {[%emt 0:04:41]} Rf6 {[%emt 0:05:56]} 16. Bg4 {[%emt 0:04:18]} Bxg4 {[%emt 0:05:00]} 17. Qxg4 {[%emt 0:01:05]} Nd7 {[%emt 0:00:14]} 18. g3 {[%emt 0:10:22]} Kh8 {[%emt 0:05:16]} 19. b3 {[%emt 0:03:57]} Rc8 {[%emt 0:04:34]} 20. h4 {[%emt 0:11:29]} Rg6 {[%emt 0:08:16]} 21. Qf3 {[%emt 0:02:55]} Nf6 {[%emt 0:01:51]} 22. gxf4 {[%emt 0:04:38]} e4 {[%emt 0:01:30]} 23. Qd1 {[%emt 0:01:47]} Rg4 {[%emt 0:02:49]} 24. Qd2 {[%emt 0:12:26]} e3 {[%emt 0:04:00]} 25. fxe3 {[%emt 0:16:20]} Ne4 {[%emt 0:01:13]} 26. Qd4 {[%emt 0:00:43]} Bxh4+ {[%emt 0:01:32]} 27. Ke2 {[%emt 0:03:01]} Qe8 {[%emt 0:04:39]} 28. Rxh4 {[%emt 0:01:02]} Rxh4 {[%emt 0:00:05]} 29. Rg1 {[%emt 0:00:04]} Qh5+ {[%emt 0:02:04]} 30. Kd3 {[%emt 0:00:12]} Nf6 {[%emt 0:00:10]} 31. Nxd6 {[%emt 0:03:09]} Rh2 {[%emt 0:00:50]} 32. Bc5 {[%emt 0:01:56]} Qe2+ {[%emt 0:12:08]} 33. Kc3 {[%emt 0:00:06]} Qxc2+ {[%emt 0:04:38]} 34. Kb4 {[%emt 0:00:03]} Rc7 {[%emt 0:02:16]} 35. Nc4 {[%emt 0:00:58]} Qf5 {[%emt 0:02:00]} 36. d6 {[%emt 0:02:30]} Rc8 {[%emt 0:02:03]} 37. Ne5 {[%emt 0:02:22]} Qe6 {[%emt 0:00:20]} 38. e4 {[%emt 0:03:34]} Re2 {[%emt 0:01:39]} 39. d7 {[%emt 0:01:55]} Rd8 {[%emt 0:00:04]} 40. f5 {[%emt 0:01:08]} Qg8 {[%emt 0:01:17]} 41. Rh1 {[%emt 0:03:30]} h6 {[%emt 0:00:26]} 42. Rh4 {[%emt 0:01:10]} Kh7 {[%emt 0:00:03]} 43. Be7 {[%emt 0:00:27]} Rxe4 {[%emt 0:00:29]} 44. Rxe4 Nd5+ 45. Kc5 {[%emt 0:01:48]} Nxe7 {[%emt 0:00:04]} 46. Qd6 {[%emt 0:00:03]} Qf8 {[%emt 0:00:15]} 47. f6 {[%emt 0:00:41]} gxf6 {[%emt 0:02:05]} 48. Nf7 {[%emt 0:00:37]} Nc8 {[%emt 0:00:38]} 49. Qxf8 {[%emt 0:00:06]} Rxf8 {[%emt 0:00:02]} 50. Re8 {[%emt 0:00:05]} 1-0

[Event "ESP-chT Honor Division 2022"]
[Site "Linares"]
[Date "2022.09.17"]
[Round "1.10"]
[White "Jimenez Ruano, Adrian"]
[Black "Muzychuk, Anna"]
[Result "0-1"]
[ECO "D84"]
[WhiteElo "2264"]
[BlackElo "2526"]
[Annotator "ChessBase"]
[PlyCount "44"]
[EventDate "2022.09.17"]
[EventType "team-tourn"]
[EventCountry "ESP"]
[SourceTitle "playchess.com"]
[Source "ChessBase"]
[SourceQuality "1"]
[TimeControl "5400+30"]

1. d4 {[%emt 0:02:13]} Nf6 {[%emt 0:00:10]} 2. c4 {[%emt 0:00:07]} g6 {[%emt 0:00:26]} 3. Nc3 {[%emt 0:01:32]} d5 {[%emt 0:00:13]} 4. Bf4 {[%emt 0:00:22]} Bg7 {[%emt 0:00:29]} 5. e3 {[%emt 0:00:11]} O-O {[%emt 0:03:24]} 6. cxd5 {[%emt 0:01:23]} Nxd5 {[%emt 0:00:41]} 7. Nxd5 {[%emt 0:00:07]} Qxd5 {[%emt 0:00:11]} 8. Bxc7 {[%emt 0:00:17]} Nc6 {[%emt 0:02:43]} 9. Ne2 {[%emt 0:02:25]} Bg4 {[%emt 0:01:20]} 10. f3 {[%emt 0:19:34]} Bf5 {[%emt 0:01:26]} 11. Nc3 {[%emt 0:05:10]} Qe6 {[%emt 0:01:45]} 12. Kf2 {[%emt 0:10:34]} Nxd4 {[%emt 0:02:19]} 13. exd4 {[%emt 0:11:38]} Rac8 {[%emt 0:00:11]} 14. d5 {[%emt 0:16:15]} Qf6 {[%emt 0:04:00]} 15. d6 {[%emt 0:08:31]} Qh4+ {[%emt 0:08:53]} 16. g3 {[%emt 0:01:31]} Bd4+ {[%emt 0:01:11]} 17. Ke1 {[%emt 0:00:57]} Qf6 {[%emt 0:00:34]} 18. dxe7 {[%emt 0:13:27]} Rfe8 {[%emt 0:09:08]} 19. Bf4 {[%emt 0:00:06]} Rxe7+ {[%emt 0:01:17]} 20. Ne2 {[%emt 0:02:51]} Qb6 {[%emt 0:02:11]} 21. Qb3 {[%emt 0:01:17]} Bf2+ {[%emt 0:01:25]} 22. Kd1 {[%emt 0:00:29]} Rd7+ {[%emt 0:01:21]} 0-1

[Event "ESP-chT Honor Division 2022"]
[Site "Linares"]
[Date "2022.09.17"]
[Round "1.11"]
[White "Korneev, Oleg"]
[Black "Rodriguez Redondo, Adhara"]
[Result "1/2-1/2"]
[ECO "C50"]
[WhiteElo "2460"]
[BlackElo "2112"]
[Annotator "ChessBase"]
[PlyCount "63"]
[EventDate "2022.09.17"]
[EventType "team-tourn"]
[EventCountry "ESP"]
[SourceTitle "playchess.com"]
[Source "ChessBase"]
[SourceQuality "1"]
[TimeControl "5400+30"]

1. e4 {[%emt 0:00:36]} e5 {[%emt 0:00:06]} 2. Nf3 {[%emt 0:00:05]} Nc6 {[%emt 0:00:05]} 3. Bc4 {[%emt 0:00:03]} Bc5 {[%emt 0:00:43]} 4. O-O {[%emt 0:00:05]} Nf6 {[%emt 0:00:17]} 5. d3 {[%emt 0:00:04]} a6 {[%emt 0:00:36]} 6. c3 {[%emt 0:03:55]} Ba7 {[%emt 0:00:31]} 7. Nbd2 {[%emt 0:00:24]} d6 {[%emt 0:00:18]} 8. Bb3 {[%emt 0:00:06]} O-O {[%emt 0:05:21]} 9. h3 {[%emt 0:00:03]} h6 {[%emt 0:01:35]} 10. Re1 {[%emt 0:00:10]} Be6 {[%emt 0:02:32]} 11. Nf1 {[%emt 0:00:14]} Re8 {[%emt 0:10:46]} 12. N3h2 {[%emt 0:00:07]} d5 {[%emt 0:07:08]} 13. Qf3 {[%emt 0:00:04]} dxe4 {[%emt 0:09:05]} 14. dxe4 {[%emt 0:00:06]} Nh7 {[%emt 0:04:59]} 15. Ng4 {[%emt 0:23:32]} Qh4 {[%emt 0:09:43]} 16. Ng3 {[%emt 0:10:11]} Ng5 {[%emt 0:05:50]} 17. Bxg5 {[%emt 0:00:12]} Qxg5 {[%emt 0:00:16]} 18. Rad1 {[%emt 0:15:57]} Qf4 {[%emt 0:09:06]} 19. Qxf4 {[%emt 0:13:08]} exf4 {[%emt 0:00:05]} 20. Nh5 {[%emt 0:00:03]} Bxg4 {[%emt 0:01:35]} 21. hxg4 {[%emt 0:00:02]} Ne5 {[%emt 0:00:25]} 22. Nxf4 {[%emt 0:00:07]} Nxg4 {[%emt 0:00:52]} 23. Nh3 {[%emt 0:00:33]} Rad8 {[%emt 0:01:49]} 24. g3 {[%emt 0:05:16]} Ne5 {[%emt 0:04:00]} 25. Kg2 {[%emt 0:04:02]} g5 {[%emt 0:09:24]} 26. f3 {[%emt 0:06:58]} Kg7 {[%emt 0:02:57]} 27. Rxd8 {[%emt 0:06:56]} Rxd8 {[%emt 0:00:06]} 28. Re2 {[%emt 0:00:02]} Nd3 {[%emt 0:06:00]} 29. Bc4 {[%emt 0:02:24]} Ne5 {[%emt 0:00:53]} 30. Bb3 {[%emt 0:00:02]} Nd3 {[%emt 0:00:05]} 31. Bc4 {[%emt 0:02:38]} Ne5 {[%emt 0:00:05]} 32. Bb3 {[%emt 0:00:05]} 1/2-1/2

[Event "ESP-chT Honor Division 2022"]
[Site "Linares"]
[Date "2022.09.17"]
[Round "1.12"]
[White "Cano Sevilla, Ivan"]
[Black "Tejedor Fuente, Enrique"]
[Result "0-1"]
[ECO "A45"]
[WhiteElo "2076"]
[BlackElo "2384"]
[Annotator "ChessBase"]
[PlyCount "90"]
[EventDate "2022.09.17"]
[EventType "team-tourn"]
[EventCountry "ESP"]
[SourceTitle "playchess.com"]
[Source "ChessBase"]
[SourceQuality "1"]
[TimeControl "5400+30"]

1. d4 {[%emt 0:00:06]} Nf6 {[%emt 0:00:07]} 2. Bf4 {[%emt 0:00:08]} d5 {[%emt 0:00:06]} 3. e3 {[%emt 0:00:03]} c5 {[%emt 0:00:10]} 4. c3 {[%emt 0:00:01]} Nc6 {[%emt 0:00:12]} 5. Nd2 {[%emt 0:00:05]} Bf5 {[%emt 0:00:48]} 6. Qb3 {[%emt 0:00:01]} Qc8 {[%emt 0:06:04]} 7. dxc5 {[%emt 0:00:09]} e6 {[%emt 0:02:57]} 8. Ngf3 {[%emt 0:01:47]} Nd7 {[%emt 0:02:21]} 9. Bd6 {[%emt 0:03:10]} Nxc5 10. Bxc5 {[%emt 0:00:20]} Bxc5 {[%emt 0:02:35]} 11. Nd4 {[%emt 0:24:47]} Bg6 {[%emt 0:01:51]} 12. N2f3 {[%emt 0:05:02]} Bd6 {[%emt 0:04:58]} 13. Be2 {[%emt 0:03:52]} O-O {[%emt 0:00:51]} 14. O-O {[%emt 0:04:30]} Na5 {[%emt 0:08:55]} 15. Qa4 {[%emt 0:07:26]} Nc4 {[%emt 0:00:35]} 16. Bxc4 {[%emt 0:00:23]} dxc4 {[%emt 0:02:21]} 17. Rfe1 {[%emt 0:00:48]} Bd3 {[%emt 0:03:14]} 18. e4 {[%emt 0:01:36]} a6 {[%emt 0:02:19]} 19. e5 {[%emt 0:00:08]} b5 {[%emt 0:03:04]} 20. Qd1 {[%emt 0:00:25]} Be7 {[%emt 0:00:25]} 21. Qd2 {[%emt 0:00:52]} Qb7 {[%emt 0:02:33]} 22. a3 {[%emt 0:06:53]} h6 {[%emt 0:04:45]} 23. Qf4 {[%emt 0:05:19]} a5 {[%emt 0:00:36]} 24. Qg4 {[%emt 0:02:23]} Ra6 {[%emt 0:05:58]} 25. Nd2 {[%emt 0:00:47]} Qd5 {[%emt 0:01:24]} 26. Qf3 {[%emt 0:05:16]} Rd8 {[%emt 0:00:53]} 27. a4 {[%emt 0:07:36]} Qxf3 {[%emt 0:01:31]} 28. N2xf3 {[%emt 0:00:32]} bxa4 {[%emt 0:01:31]} 29. Rxa4 {[%emt 0:00:09]} Rb8 {[%emt 0:00:54]} 30. Ra2 {[%emt 0:05:35]} a4 {[%emt 0:00:54]} 31. Rea1 {[%emt 0:00:57]} a3 {[%emt 0:00:34]} 32. bxa3 {[%emt 0:00:58]} Rxa3 {[%emt 0:00:40]} 33. h3 {[%emt 0:00:42]} Rxc3 {[%emt 0:10:55]} 34. Nc6 {[%emt 0:00:44]} Rb7 {[%emt 0:00:02]} 35. Ra8+ {[%emt 0:00:39]} Kh7 {[%emt 0:00:04]} 36. R8a7 {[%emt 0:02:48]} Rxa7 {[%emt 0:02:04]} 37. Rxa7 {[%emt 0:00:02]} Bc5 {[%emt 0:02:36]} 38. Rxf7 {[%emt 0:00:02]} Rc1+ {[%emt 0:02:02]} 39. Kh2 {[%emt 0:00:01]} c3 {[%emt 0:02:12]} 40. Ncd4 {[%emt 0:01:14]} c2 {[%emt 0:03:53]} 41. Nxe6 {[%emt 0:00:19]} Bc4 {[%emt 0:04:28]} 42. Rxg7+ {[%emt 0:00:40]} Kh8 {[%emt 0:00:05]} 43. Rc7 {[%emt 0:00:11]} Rh1+ {[%emt 0:00:22]} 44. Kxh1 {[%emt 0:00:01]} c1=Q+ {[%emt 0:00:12]} 45. Kh2 {[%emt 0:00:03]} Bxe6 {[%emt 0:00:14]} 0-1

[Event "ESP-chT Honor Division 2022"]
[Site "Linares"]
[Date "2022.09.17"]
[Round "1.13"]
[White "Kryvoruchko, Yuriy"]
[Black "Cheparinov, Ivan"]
[Result "1/2-1/2"]
[ECO "C77"]
[WhiteElo "2669"]
[BlackElo "2686"]
[Annotator "ChessBase"]
[PlyCount "78"]
[EventDate "2022.09.17"]
[EventType "team-tourn"]
[EventCountry "ESP"]
[SourceTitle "playchess.com"]
[Source "ChessBase"]
[SourceQuality "1"]
[TimeControl "5400+30"]

1. e4 {[%emt 0:00:04]} e5 {[%emt 0:00:04]} 2. Nf3 {[%emt 0:00:11]} Nc6 {[%emt 0:00:06]} 3. Bb5 {[%emt 0:00:11]} a6 {[%emt 0:00:04]} 4. Ba4 {[%emt 0:00:04]} Nf6 {[%emt 0:00:04]} 5. d3 {[%emt 0:00:09]} Bc5 {[%emt 0:00:16]} 6. c3 {[%emt 0:00:15]} b5 {[%emt 0:00:11]} 7. Bb3 {[%emt 0:00:08]} d5 {[%emt 0:01:01]} 8. exd5 {[%emt 0:01:43]} Nxd5 {[%emt 0:00:08]} 9. O-O {[%emt 0:03:16]} O-O {[%emt 0:00:07]} 10. Re1 {[%emt 0:02:37]} Bg4 {[%emt 0:00:41]} 11. h3 {[%emt 0:17:30]} Bh5 {[%emt 0:00:12]} 12. Nbd2 {[%emt 0:01:24]} f6 {[%emt 0:03:05]} 13. Ne4 {[%emt 0:06:22]} Ba7 {[%emt 0:00:08]} 14. Be3 {[%emt 0:06:31]} Na5 {[%emt 0:01:08]} 15. Bxa7 {[%emt 0:04:09]} Nxb3 {[%emt 0:02:42]} 16. axb3 {[%emt 0:01:17]} Rxa7 {[%emt 0:00:04]} 17. Ng3 {[%emt 0:09:11]} Bxf3 {[%emt 0:06:02]} 18. Qxf3 {[%emt 0:00:27]} c5 {[%emt 0:01:16]} 19. Rad1 {[%emt 0:04:44]} Rd7 {[%emt 0:12:37]} 20. d4 {[%emt 0:05:03]} cxd4 {[%emt 0:12:10]} 21. cxd4 {[%emt 0:00:05]} Nf4 {[%emt 0:07:32]} 22. dxe5 {[%emt 0:00:14]} Nd3 {[%emt 0:02:27]} 23. Qc6 {[%emt 0:19:41]} fxe5 {[%emt 0:01:05]} 24. Ne4 {[%emt 0:00:04]} Rd4 {[%emt 0:01:21]} 25. Rf1 {[%emt 0:00:08]} Kh8 {[%emt 0:04:44]} 26. Rd2 {[%emt 0:03:21]} Qa8 {[%emt 0:04:17]} 27. Qxa8 {[%emt 0:00:33]} Rxa8 {[%emt 0:00:03]} 28. Ng5 {[%emt 0:02:14]} Nc5 {[%emt 0:03:57]} 29. Rxd4 {[%emt 0:01:36]} exd4 {[%emt 0:00:04]} 30. b4 {[%emt 0:00:13]} Nb3 {[%emt 0:02:52]} 31. Rd1 {[%emt 0:05:12]} Rc8 {[%emt 0:01:04]} 32. Ne6 {[%emt 0:00:18]} Rc4 {[%emt 0:01:01]} 33. Nc5 {[%emt 0:00:09]} Nxc5 {[%emt 0:03:59]} 34. bxc5 {[%emt 0:00:04]} Kg8 {[%emt 0:01:10]} 35. b3 {[%emt 0:00:31]} Rxc5 {[%emt 0:02:00]} 36. Rxd4 {[%emt 0:00:04]} a5 {[%emt 0:00:31]} 37. Rd7 {[%emt 0:01:27]} Rc3 {[%emt 0:03:19]} 38. Ra7 {[%emt 0:00:05]} Rxb3 {[%emt 0:00:05]} 39. Rxa5 {[%emt 0:00:03]} b4 {[%emt 0:00:07]} 1/2-1/2

[Event "ESP-chT Honor Division 2022"]
[Site "Linares"]
[Date "2022.09.17"]
[Round "1.14"]
[White "Santos Latasa, Jaime"]
[Black "Anton Guijarro, David"]
[Result "1/2-1/2"]
[ECO "D39"]
[WhiteElo "2680"]
[BlackElo "2662"]
[Annotator "ChessBase"]
[PlyCount "66"]
[EventDate "2022.09.17"]
[EventType "team-tourn"]
[EventCountry "ESP"]
[SourceTitle "playchess.com"]
[Source "ChessBase"]
[SourceQuality "1"]
[TimeControl "5400+30"]

1. d4 Nf6 2. c4 e6 3. Nf3 d5 4. Nc3 Bb4 5. Bg5 dxc4 6. e4 c5 7. Bxc4 cxd4 8. Nxd4 Qa5 9. Bd2 Qc5 10. Bb5+ Bd7 11. Nb3 Qc7 12. O-O O-O 13. Bd3 Rd8 14. Qe2 Nc6 15. Rac1 Qd6 16. Rfd1 Qb8 17. g3 h6 18. Bb1 Be8 19. a3 Bf8 20. Bf4 Rxd1+ 21. Rxd1 Ne5 22. Nd4 Nfd7 23. Be3 Nb6 24. Bf4 g5 25. Bc1 Ng6 26. Ba2 Qe5 27. Be3 Rd8 28. Kg2 Be7 29. h3 Kh7 30. Kh2 Nd7 31. Bb1 a6 32. Nf5 exf5 33. exf5 Nf6 1/2-1/2

[Event "ESP-chT Honor Division 2022"]
[Site "Linares"]
[Date "2022.09.17"]
[Round "1.15"]
[White "Kuzubov, Yuriy"]
[Black "Pichot, Alan"]
[Result "0-1"]
[ECO "D37"]
[WhiteElo "2627"]
[BlackElo "2641"]
[Annotator "ChessBase"]
[PlyCount "78"]
[EventDate "2022.09.17"]
[EventType "team-tourn"]
[EventCountry "ESP"]
[SourceTitle "playchess.com"]
[Source "ChessBase"]
[SourceQuality "1"]
[TimeControl "5400+30"]

1. d4 {[%emt 0:00:04]} Nf6 {[%emt 0:00:12]} 2. c4 {[%emt 0:00:04]} e6 {[%emt 0:00:13]} 3. Nf3 {[%emt 0:00:06]} d5 {[%emt 0:00:14]} 4. Nc3 {[%emt 0:00:06]} dxc4 {[%emt 0:00:28]} 5. e4 {[%emt 0:00:07]} b5 {[%emt 0:00:12]} 6. e5 {[%emt 0:00:19]} Nd5 {[%emt 0:00:10]} 7. Nxb5 {[%emt 0:00:08]} Nb6 {[%emt 0:00:04]} 8. a3 {[%emt 0:06:40]} Bb7 {[%emt 0:04:08]} 9. Be3 {[%emt 0:00:30]} Qd7 {[%emt 0:02:47]} 10. Nc3 {[%emt 0:00:32]} Nc6 {[%emt 0:01:32]} 11. Qc2 {[%emt 0:02:43]} Ne7 {[%emt 0:02:52]} 12. Nd2 {[%emt 0:24:19]} Nf5 {[%emt 0:01:37]} 13. Nxc4 {[%emt 0:02:24]} Nxc4 {[%emt 0:14:01]} 14. Bxc4 {[%emt 0:00:24]} Nxd4 {[%emt 0:13:11]} 15. Bxd4 {[%emt 0:24:39]} Qxd4 {[%emt 0:00:07]} 16. Qa4+ {[%emt 0:03:59]} c6 {[%emt 0:03:54]} 17. O-O {[%emt 0:00:09]} Be7 {[%emt 0:00:38]} 18. Rfe1 {[%emt 0:14:24]} O-O {[%emt 0:01:50]} 19. Rad1 {[%emt 0:00:13]} Qb6 {[%emt 0:00:41]} 20. Rd7 {[%emt 0:00:44]} Rfe8 {[%emt 0:04:37]} 21. Bd3 {[%emt 0:02:38]} Rad8 {[%emt 0:19:45]} 22. Bxh7+ {[%emt 0:11:09]} Kf8 {[%emt 0:00:04]} 23. Rxd8 {[%emt 0:00:19]} Rxd8 {[%emt 0:00:03]} 24. Qf4 {[%emt 0:00:40]} Rd4 {[%emt 0:02:09]} 25. Qc1 {[%emt 0:01:45]} g6 {[%emt 0:04:00]} 26. Bxg6 {[%emt 0:02:29]} fxg6 {[%emt 0:00:34]} 27. Qh6+ {[%emt 0:00:16]} Ke8 {[%emt 0:00:51]} 28. Ne2 {[%emt 0:02:03]} Qa5 {[%emt 0:06:54]} 29. Rf1 {[%emt 0:00:15]} Rd2 {[%emt 0:04:34]} 30. b4 {[%emt 0:00:47]} Qd5 {[%emt 0:00:15]} 31. Nf4 {[%emt 0:00:31]} Qe4 {[%emt 0:04:09]} 32. Nxg6 {[%emt 0:00:30]} c5 {[%emt 0:00:12]} 33. Nf4 {[%emt 0:00:27]} Rd4 {[%emt 0:00:59]} 34. Qh8+ {[%emt 0:00:35]} Kd7 {[%emt 0:00:11]} 35. Qb8 {[%emt 0:00:11]} cxb4 {[%emt 0:02:36]} 36. axb4 {[%emt 0:00:33]} Qc6 {[%emt 0:02:11]} 37. b5 {[%emt 0:00:43]} Qxb5 {[%emt 0:01:04]} 38. Ng6 {[%emt 0:00:32]} Qxf1+ {[%emt 0:01:42]} 39. Kxf1 {[%emt 0:00:10]} Ba6+ {[%emt 0:00:04]} 0-1

[Event "ESP-chT Honor Division 2022"]
[Site "Linares"]
[Date "2022.09.17"]
[Round "1.16"]
[White "Perez Candelario, Manuel"]
[Black "Forcen Esteban, Daniel"]
[Result "1/2-1/2"]
[ECO "C67"]
[WhiteElo "2566"]
[BlackElo "2580"]
[Annotator "ChessBase"]
[PlyCount "85"]
[EventDate "2022.09.17"]
[EventType "team-tourn"]
[EventCountry "ESP"]
[SourceTitle "playchess.com"]
[Source "ChessBase"]
[SourceQuality "1"]
[TimeControl "5400+30"]

1. e4 {[%emt 0:00:03]} e5 {[%emt 0:00:10]} 2. Nf3 {[%emt 0:00:04]} Nc6 {[%emt 0:00:05]} 3. Bb5 {[%emt 0:00:04]} Nf6 {[%emt 0:00:27]} 4. O-O {[%emt 0:00:32]} Nxe4 {[%emt 0:00:51]} 5. Re1 {[%emt 0:00:25]} Nd6 {[%emt 0:00:05]} 6. Nxe5 {[%emt 0:00:40]} Be7 {[%emt 0:01:42]} 7. Bf1 {[%emt 0:00:07]} Nxe5 {[%emt 0:00:34]} 8. Rxe5 {[%emt 0:00:04]} O-O {[%emt 0:00:06]} 9. Nc3 {[%emt 0:00:59]} Bf6 {[%emt 0:00:47]} 10. Re1 {[%emt 0:01:07]} Re8 {[%emt 0:00:32]} 11. Nd5 {[%emt 0:00:30]} Rxe1 {[%emt 0:00:08]} 12. Qxe1 {[%emt 0:00:31]} b6 {[%emt 0:00:10]} 13. Nxf6+ {[%emt 0:01:31]} Qxf6 {[%emt 0:00:24]} 14. d3 {[%emt 0:00:40]} Bb7 {[%emt 0:00:52]} 15. Qe3 {[%emt 0:00:37]} c5 {[%emt 0:25:03]} 16. Qf4 {[%emt 0:00:39]} Qxf4 {[%emt 0:00:13]} 17. Bxf4 {[%emt 0:00:04]} Nf5 {[%emt 0:00:05]} 18. Re1 {[%emt 0:06:34]} Bd5 {[%emt 0:04:04]} 19. a3 {[%emt 0:02:22]} f6 {[%emt 0:03:47]} 20. c3 {[%emt 0:04:17]} Rc8 {[%emt 0:10:39]} 21. f3 {[%emt 0:02:55]} Kf7 {[%emt 0:05:01]} 22. Kf2 {[%emt 0:00:31]} a5 {[%emt 0:07:06]} 23. Be2 {[%emt 0:11:17]} a4 {[%emt 0:08:51]} 24. g4 {[%emt 0:07:51]} g5 {[%emt 0:01:58]} 25. Bd2 {[%emt 0:13:19]} Nh4 {[%emt 0:00:17]} 26. c4 {[%emt 0:03:47]} Bc6 {[%emt 0:00:49]} 27. Bc3 {[%emt 0:01:21]} Ng6 {[%emt 0:02:06]} 28. d4 {[%emt 0:00:33]} Nf4 {[%emt 0:00:05]} 29. Bf1 {[%emt 0:04:26]} d6 {[%emt 0:05:40]} 30. Kg3 {[%emt 0:03:45]} Re8 {[%emt 0:02:32]} 31. Rxe8 {[%emt 0:00:32]} Bxe8 {[%emt 0:00:03]} 32. h4 {[%emt 0:00:42]} h6 {[%emt 0:01:15]} 33. h5 {[%emt 0:02:35]} Ne6 {[%emt 0:02:17]} 34. d5 {[%emt 0:02:21]} Nf8 {[%emt 0:01:37]} 35. Bd3 {[%emt 0:07:15]} Nd7 {[%emt 0:00:29]} 36. f4 {[%emt 0:06:32]} gxf4+ {[%emt 0:00:15]} 37. Kxf4 {[%emt 0:00:04]} Ne5 {[%emt 0:00:06]} 38. Be2 {[%emt 0:02:44]} Bd7 {[%emt 0:00:35]} 39. Kg3 {[%emt 0:00:58]} Kg7 {[%emt 0:01:36]} 40. Kh4 {[%emt 0:00:52]} Bc8 {[%emt 0:00:40]} 41. Bxe5 {[%emt 0:01:23]} fxe5 {[%emt 0:00:09]} 42. g5 {[%emt 0:00:06]} Bf5 {[%emt 0:00:52]} 43. g6 {[%emt 0:01:40]} 1/2-1/2

[Event "ESP-chT Honor Division 2022"]
[Site "Linares"]
[Date "2022.09.17"]
[Round "1.17"]
[White "Buksa, Nataliya"]
[Black "Stefanova, Antoaneta"]
[Result "1-0"]
[ECO "C50"]
[WhiteElo "2407"]
[BlackElo "2472"]
[Annotator "ChessBase"]
[PlyCount "101"]
[EventDate "2022.09.17"]
[EventType "team-tourn"]
[EventCountry "ESP"]
[SourceTitle "playchess.com"]
[Source "ChessBase"]
[SourceQuality "1"]
[TimeControl "5400+30"]

1. e4 {[%emt 0:00:03]} e5 {[%emt 0:00:04]} 2. Nf3 {[%emt 0:00:05]} Nc6 {[%emt 0:00:05]} 3. Bc4 {[%emt 0:00:09]} Bc5 {[%emt 0:00:23]} 4. Nc3 {[%emt 0:00:09]} a6 {[%emt 0:10:07]} 5. d3 {[%emt 0:00:35]} d6 {[%emt 0:05:23]} 6. a3 {[%emt 0:15:13]} h6 {[%emt 0:12:19]} 7. h3 {[%emt 0:04:23]} Nge7 {[%emt 0:06:19]} 8. Be3 {[%emt 0:05:15]} Ng6 {[%emt 0:02:30]} 9. b4 {[%emt 0:10:14]} Bxe3 {[%emt 0:06:53]} 10. fxe3 {[%emt 0:00:04]} Be6 {[%emt 0:02:26]} 11. Nd5 {[%emt 0:07:35]} b5 {[%emt 0:08:21]} 12. Bb3 {[%emt 0:01:30]} a5 {[%emt 0:00:19]} 13. a4 {[%emt 0:14:05]} axb4 {[%emt 0:28:19]} 14. axb5 {[%emt 0:01:23]} Na7 {[%emt 0:00:47]} 15. b6 {[%emt 0:08:43]} cxb6 {[%emt 0:01:53]} 16. Nxb4 {[%emt 0:01:19]} Bxb3 {[%emt 0:01:29]} 17. cxb3 {[%emt 0:00:02]} Nb5 {[%emt 0:03:31]} 18. O-O {[%emt 0:03:17]} O-O {[%emt 0:01:12]} 19. Nd5 {[%emt 0:01:38]} Rb8 {[%emt 0:02:35]} 20. Qe1 {[%emt 0:04:09]} Nc7 {[%emt 0:01:24]} 21. Nb4 {[%emt 0:04:09]} Qd7 {[%emt 0:01:11]} 22. Ra7 {[%emt 0:02:01]} Ra8 {[%emt 0:00:32]} 23. Rb7 {[%emt 0:02:03]} Rfb8 {[%emt 0:00:39]} 24. Rxb8+ {[%emt 0:00:10]} Rxb8 {[%emt 0:00:01]} 25. Qc3 {[%emt 0:00:03]} Ne7 {[%emt 0:00:21]} 26. Rc1 {[%emt 0:03:05]} Nb5 {[%emt 0:00:40]} 27. Qa1 {[%emt 0:00:04]} f5 {[%emt 0:01:42]} 28. Qa4 {[%emt 0:00:38]} fxe4 {[%emt 0:00:46]} 29. dxe4 {[%emt 0:01:02]} Rb7 {[%emt 0:00:54]} 30. Qa8+ {[%emt 0:05:55]} Kh7 {[%emt 0:00:11]} 31. Nh4 {[%emt 0:03:36]} Rc7 {[%emt 0:01:04]} 32. Rf1 {[%emt 0:00:03]} Rc8 {[%emt 0:00:17]} 33. Qa4 {[%emt 0:00:05]} Qe8 {[%emt 0:00:27]} 34. Nd5 {[%emt 0:01:30]} Nxd5 {[%emt 0:00:53]} 35. exd5 {[%emt 0:00:02]} Nc3 {[%emt 0:00:26]} 36. Qg4 {[%emt 0:00:03]} Rc7 {[%emt 0:00:34]} 37. e4 {[%emt 0:00:57]} b5 {[%emt 0:01:08]} 38. b4 {[%emt 0:02:58]} Na2 {[%emt 0:00:51]} 39. Nf5 {[%emt 0:00:54]} Rd7 {[%emt 0:00:20]} 40. Qe2 {[%emt 0:00:13]} Nc3 {[%emt 0:00:23]} 41. Qd3 {[%emt 0:00:15]} Rc7 {[%emt 0:00:41]} 42. Nxd6 {[%emt 0:00:13]} Qg6 {[%emt 0:00:16]} 43. Nf5 {[%emt 0:00:10]} Rc4 {[%emt 0:00:14]} 44. d6 {[%emt 0:00:21]} Nxe4 {[%emt 0:00:26]} 45. d7 {[%emt 0:00:32]} Qb6+ {[%emt 0:00:11]} 46. Kh2 {[%emt 0:00:03]} Qd8 {[%emt 0:00:08]} 47. Re1 {[%emt 0:00:40]} Nf2 {[%emt 0:01:39]} 48. Qd5 {[%emt 0:02:03]} Qg5 {[%emt 0:00:45]} 49. d8=Q {[%emt 0:00:30]} Qxf5 {[%emt 0:00:14]} 50. Q8g8+ {[%emt 0:00:12]} Kg6 {[%emt 0:00:06]} 51. Qde6+ {[%emt 0:00:04]} 1-0